[Event "40th BAN National Women Chess-ch 2021"]
[Site "Dhaka"]
[Date "2022.01.01"]
[Round "4.4"]
[White "Jannatul, Ferdous"]
[Black "Nusrat, Jahan Liza"]
[Result "1-0"]
[ECO "C90"]
[WhiteElo "1810"]
[BlackElo "1478"]
[Annotator "NA RC"]
[PlyCount "69"]
[EventDate "2021.12.29"]
[EventCountry "BAN"]
[SourceTitle "playchess.com"]
[Source "ChessBase"]
[SourceQuality "1"]
[TimeControl "40/5400+30:1800+30"]

{[%evp 8,65,27,23,45,25,60,31,50,35,47,47,56,43,44,45,82,29,67,59,80,45,40,36,50,45,194,27,33,35,34,0,11,-30,-18,-25,109,116,348,83,189,146,364,383,485,520,531,537,1141,1286,1581,1609,1393,1490,29984,29988,29988,29989,29997,29998]} 1. e4 {[%emt 0:00:04]} e5 {[%emt 0:00:05]} 2. Nf3 {[%emt 0:00:04]} Nc6 {[%emt 0:00:11]} 3. Bb5 {[%emt 0:00:06]} a6 {[%emt 0:00:10]} 4. Ba4 {[%emt 0:00:02]} Nf6 {[%emt 0:00:27]} 5. O-O {[%emt 0:00:30]} d6 {[%emt 0:00:22]} 6. Re1 {[%emt 0:00:29]} Bd7 {[%emt 0:00:40]} (6... b5 $11 {is more appropriate.} 7. Bb3 Be7) 7. c3 {[%emt 0:00:48]} Be7 {[%emt 0:00:28]} 8. d4 {[%emt 0:01:14]} O-O {[%emt 0:02:50]} 9. h3 {[%emt 0:05:33]} h6 {[%emt 0:02:12]} 10. Nbd2 {[%emt 0:01:04]} b5 {[%emt 0:01:07]} 11. Bc2 {[%emt 0:00:20]} Nh7 {[%emt 0:03:14]} 12. dxe5 {[%emt 0:10:43]} (12. d5 $14) 12... dxe5 {[%emt 0:01:24]} 13. Nf1 {[%emt 0:00:59]} Qc8 {[%emt 0:02:23]} (13... Be6 $14) 14. Ng3 {[%emt 0:04:51]} Rd8 {[%emt 0:08:30]} 15. Qe2 {[%emt 0:00:18]} Be6 {[%emt 0:03:34]} 16. Nf5 {[%emt 0:07:21]} Bc4 {[%emt 0:03:49] [#]} ({Black should play} 16... Bf8 $14) 17. Nxe7+ $2 {[%emt 0:00:54]} ({White must play} 17. Nxe5 $1 $18 {[%mdl 512]} Bxe2 18. Nxc6) 17... Nxe7 {[%emt 0:00:23]} 18. Qe3 {[%emt 0:00:27]} Ng6 $1 {[%emt 0:00:41]} 19. b3 {[%emt 0:03:30]} Be6 {[%emt 0:00:14]} 20. Qc5 {[%emt 0:02:20] [#]} (20. a4 $142) 20... Bxh3 $1 {[%emt 0:06:01]} 21. Nxe5 {[%emt 0:23:27] [#]} ({But not} 21. gxh3 $2 Qxh3 22. Re3 (22. Nxe5 $2 {gets mated.} Nh4) 22... Qg4+ 23. Kf1 Nf4 $19) 21... Nxe5 {[%emt 0:00:49]} (21... Qe6 $1 $11 {remains equal.} 22. Re3 (22. Nxg6 Qxg6) 22... Nxe5 23. Rxh3 Ng5 24. Bxg5 hxg5) 22. Qxe5 {[%emt 0:03:07]} Rd6 $2 {[%emt 0:04:34]} 23. Kh2 $2 {[%emt 0:03:07]} (23. gxh3 $18 {and the rest is easy.} Qxh3 24. Re3 Rg6+ 25. Rg3) 23... Bxg2 {[%emt 0:04:54]} 24. Kxg2 {[%emt 0:01:19]} Qg4+ $2 {[%emt 0:00:06]} (24... Rg6+ $16 25. Kh2 Nf6) 25. Qg3 {[%emt 0:00:20]} Qd7 {[%emt 0:10:01]} 26. e5 {[%emt 0:01:23]} Rb6 {[%emt 0:06:00]} 27. Be3 {[%emt 0:00:49]} Rbb8 {[%emt 0:05:48]} 28. Bxh6 {[%emt 0:01:36]} g6 {[%emt 0:05:27]} 29. Rad1 {[%emt 0:03:12]} Qe6 {[%emt 0:01:31]} 30. Be4 {[%emt 0:03:57]} Ra7 {[%emt 0:02:38]} 31. Bd5 {[%emt 0:01:04]} Qf5 {[%emt 0:01:05]} 32. e6 {[%emt 0:00:45]} c6 {[%emt 0:04:50]} 33. Qxb8+ {[%emt 0:00:48]} Nf8 {[%emt 0:00:11]} 34. Qxf8+ {[%emt 0:00:07]} Kh7 {[%emt 0:20:51]} 35. Qg7# {[%emt 0:21:22]} 1-0

[Event "40th BAN National Women Chess-ch 2021"]
[Site "Dhaka"]
[Date "2022.01.01"]
[Round "4.5"]
[White "Nusrat Jahan, Alo"]
[Black "Nargis, Kaumudi"]
[Result "1-0"]
[ECO "B12"]
[WhiteElo "1766"]
[BlackElo "1237"]
[Annotator "NA RC"]
[PlyCount "87"]
[EventDate "2021.12.29"]
[EventCountry "BAN"]
[SourceTitle "playchess.com"]
[Source "ChessBase"]
[SourceQuality "1"]
[TimeControl "40/5400+30:1800+30"]

1. e4 {[%emt 0:00:03]} d6 {[%emt 0:01:09]} 2. d4 {[%emt 0:00:14]} c6 {[%emt 0:00:07]} 3. Nf3 {[%emt 0:00:16]} Nd7 {[%emt 0:00:12]} 4. Nc3 {[%emt 0:02:05]} Qc7 {[%emt 0:00:11]} 5. Be2 {[%emt 0:00:42]} e5 {[%emt 0:00:13]} 6. d5 {[%emt 1:30:10]} Ngf6 {[%emt 0:00:15]} 7. O-O {[%emt 0:05:06]} Be7 {[%emt 0:00:10]} 8. Re1 {[%emt 0:06:46]} O-O {[%emt 0:00:40]} 9. Bf1 {[%emt 0:07:46]} Ne8 {[%emt 0:03:07]} 10. b3 {[%emt 0:13:09]} Nb6 {[%emt 0:02:16]} 11. Bb2 {[%emt 0:10:09]} Bg4 {[%emt 0:00:21]} 12. h3 {[%emt 0:02:09]} Bh5 {[%emt 0:00:07]} 13. dxc6 {[%emt 0:10:21]} bxc6 {[%emt 0:00:15]} 14. Qd3 {[%emt 0:05:44]} Bg6 {[%emt 0:00:35]} 15. Rad1 {[%emt 0:03:03]} Rd8 {[%emt 0:00:00]} 16. Qe3 {[%emt 0:02:56]} f5 {[%emt 0:00:00]} 17. exf5 {[%emt 0:04:06]} Bxf5 {[%emt 0:00:00]} 18. Bd3 {[%emt 0:01:09]} Bxd3 {[%emt 0:00:00]} 19. Rxd3 {[%emt 0:02:48]} Nd5 {[%emt 0:00:00]} 20. Nxd5 {[%emt 0:03:30]} cxd5 {[%emt 0:00:00]} 21. Rxd5 {[%emt 0:00:31]} Qxc2 {[%emt 0:00:00]} 22. Rd2 {[%emt 0:00:48]} Qc7 {[%emt 0:00:00]} 23. Rc1 {[%emt 0:03:03]} Qb7 {[%emt 0:00:00]} 24. Rdc2 {[%emt 0:06:01]} h6 {[%emt 0:00:00]} 25. Qe2 {[%emt 0:01:33]} Bf6 {[%emt 0:00:00]} 26. Rd1 {[%emt 0:02:42]} e4 {[%emt 0:00:00]} 27. Nd4 {[%emt 0:00:42]} Bxd4 {[%emt 0:00:00]} 28. Bxd4 {[%emt 0:00:10]} Rf7 {[%emt 0:00:00]} 29. Rcd2 {[%emt 0:01:43]} d5 {[%emt 0:00:00]} 30. Bb2 {[%emt 0:02:08]} Nc7 {[%emt 0:00:00]} 31. Qh5 {[%emt 0:01:28]} Ne6 {[%emt 0:00:00]} 32. Rxd5 {[%emt 0:01:19]} Rxd5 {[%emt 0:00:00]} 33. Qxd5 {[%emt 0:00:34]} Qa6 {[%emt 0:00:00]} 34. Qxe4 {[%emt 0:00:56]} Ng5 {[%emt 0:00:00]} 35. Rd8+ {[%emt 0:00:31]} Rf8 {[%emt 0:00:00]} 36. Qd5+ {[%emt 0:00:45]} Ne6 {[%emt 0:00:00]} 37. Rd6 {[%emt 0:00:20]} Qe2 {[%emt 0:00:00]} 38. Qxe6+ {[%emt 0:00:07]} Qxe6 {[%emt 0:00:00]} 39. Rxe6 {[%emt 0:00:02]} Rd8 {[%emt 0:00:00]} 40. Re7 {[%emt 0:00:00]} Kf8 {[%emt 0:00:00]} 41. Rxa7 {[%emt 0:00:34]} Rd2 {[%emt 0:00:00]} 42. Bxg7+ {[%emt 0:00:10]} Kg8 {[%emt 0:00:00]} 43. Bxh6 {[%emt 0:00:10]} Rd1+ {[%emt 0:00:00]} 44. Kh2 {[%emt 0:00:12]} 1-0

[Event "40th BAN National Women Chess-ch 2021"]
[Site "Dhaka"]
[Date "2022.01.02"]
[Round "5.3"]
[White "Kazi Zarin, Tasnim"]
[Black "Nusrat Jahan, Alo"]
[Result "0-1"]
[ECO "B42"]
[WhiteElo "1829"]
[BlackElo "1766"]
[Annotator "NA"]
[PlyCount "74"]
[EventDate "2021.12.29"]
[EventCountry "BAN"]
[SourceTitle "playchess.com"]
[Source "ChessBase"]
[SourceQuality "1"]
[TimeControl "40/5400+30:1800+30"]

1. e4 {[%emt 0:00:02]} c5 {[%emt 0:00:10]} 2. Nf3 {[%emt 0:00:13]} e6 {[%emt 0:00:08]} 3. d4 {[%emt 0:00:13]} cxd4 {[%emt 0:00:13]} 4. Nxd4 {[%emt 0:00:06]} a6 {[%emt 0:00:08]} 5. Bd3 {[%emt 1:32:26]} Qc7 {[%emt 0:00:16]} 6. Qe2 {[%emt 0:00:00]} Nc6 {[%emt 0:01:05]} 7. Nxc6 {[%emt 0:00:00]} bxc6 {[%emt 0:02:03]} 8. O-O {[%emt 0:01:30]} d6 {[%emt 0:07:49]} 9. c4 {[%emt 0:00:00]} Nf6 {[%emt 0:06:21]} 10. Nc3 {[%emt 0:00:00]} Be7 {[%emt 0:02:26]} 11. f4 {[%emt 0:00:00]} O-O {[%emt 0:04:36]} 12. g4 {[%emt 0:02:00]} d5 {[%emt 0:13:15]} 13. g5 {[%emt 0:00:00]} dxe4 {[%emt 0:07:28]} 14. Nxe4 {[%emt 0:00:00]} Nxe4 {[%emt 0:00:09]} 15. Qxe4 {[%emt 0:00:00]} g6 {[%emt 0:02:16]} 16. Be3 {[%emt 0:00:00]} c5 {[%emt 0:10:07]} 17. Qf3 {[%emt 0:00:00]} Bb7 {[%emt 0:01:50]} 18. Qg3 {[%emt 0:00:00]} Qc6 {[%emt 0:03:58]} 19. h4 {[%emt 0:00:00]} Rfd8 {[%emt 0:04:11]} 20. Be2 {[%emt 0:00:00]} Qe4 {[%emt 0:08:23]} 21. Rae1 {[%emt 0:00:00]} Qc2 {[%emt 0:01:42]} (21... Rab8 $5 {[%cal Re4c2]}) 22. Kf2 {[%emt 0:00:00] [#]} Be4 $1 {[%emt 0:02:29]} (22... Qxb2 $2 23. Rb1 Qxa2 24. Rxb7 $18) 23. Rb1 {[%emt 0:00:00]} (23. Rd1 $17) 23... Bd3 $2 {[%emt 0:02:52]} ({Don't do} 23... Rd3 24. Rfc1 Qa4 25. Bxd3 Bxd3 26. Ra1 $16) (23... Rab8 $19 24. Rfd1 Rxd1 25. Rxd1 Rxb2) 24. Rfe1 {[%emt 0:00:00]} (24. Qf3 $17 {was called for.}) 24... Bxe2 {[%emt 0:00:13]} (24... Rab8 $19 25. Qg2 Rxb2 26. Rxb2 Qxb2) 25. Rbc1 {[%emt 0:00:00]} Qxb2 {[%emt 0:00:59]} 26. Rxe2 {[%emt 0:00:00]} Qa3 {[%emt 0:00:41]} 27. h5 {[%emt 0:00:00]} Rab8 $15 {[%emt 0:03:37]} (27... gxh5 $17 28. Qh3 Qd3 29. Qxh5 Bf8) 28. Rcc2 {[%emt 0:00:00]} (28. hxg6 $17 hxg6 29. Rh1) 28... Rb1 {[%emt 0:05:32]} 29. f5 {[%emt 0:03:40]} Bd6 {[%emt 0:02:24]} 30. Qh4 {[%emt 0:01:39]} exf5 {[%emt 0:00:34]} 31. Bf4 {[%emt 0:01:18]} Bxf4 {[%emt 0:00:35]} 32. Qxf4 {[%emt 0:00:07]} Qh3 {[%emt 0:08:00]} 33. Re1 {[%emt 0:03:46]} Rxe1 34. Kxe1 Qh1+ {[%emt 0:01:00]} 35. Kf2 {[%emt 0:01:00]} Qh3 {[%emt 0:00:30]} 36. Re2 {[%emt 0:00:30]} Qh2+ {[%emt 0:00:30]} 37. Kf1 {[%emt 0:00:30]} Qxh5 {[%emt 0:00:30]} 0-1

[Event "40th BAN National Women Chess-ch 2021"]
[Site "Dhaka"]
[Date "2022.01.02"]
[Round "5.5"]
[White "Nusrat, Jahan Liza"]
[Black "Hamid, Rani"]
[Result "1-0"]
[ECO "B43"]
[WhiteElo "1478"]
[BlackElo "1864"]
[Annotator "NA RC"]
[PlyCount "85"]
[EventDate "2021.12.29"]
[EventCountry "BAN"]
[SourceTitle "playchess.com"]
[Source "ChessBase"]
[SourceQuality "1"]
[TimeControl "40/5400+30:1800+30"]

1. e4 {[%emt 0:00:04]} c5 {[%emt 0:00:06]} 2. Nf3 {[%emt 0:00:03]} e6 {[%emt 0:00:06]} 3. d4 {[%emt 0:00:05]} cxd4 {[%emt 0:00:06]} 4. Nxd4 {[%emt 0:00:04]} a6 {[%emt 0:00:05]} 5. Nc3 {[%emt 0:00:09]} Qc7 {[%emt 0:00:07]} 6. Bd3 {[%emt 0:00:45]} Nf6 {[%emt 0:00:08]} 7. a3 {[%emt 0:01:05]} Nc6 {[%emt 0:01:09]} 8. Nxc6 {[%emt 0:00:08]} bxc6 {[%emt 0:00:04]} 9. O-O {[%emt 0:00:48]} Be7 {[%emt 0:00:10]} 10. Kh1 {[%emt 0:00:57]} d5 {[%emt 0:00:50]} 11. Bg5 {[%emt 0:00:55]} d4 {[%emt 0:02:05]} 12. Ne2 {[%emt 0:00:34]} e5 {[%emt 0:00:54]} (12... c5 $142 13. b3 O-O) 13. f4 {[%emt 0:00:47]} Ng4 {[%emt 0:01:06]} 14. Qc1 {[%emt 0:02:31]} (14. Bxe7 $15 Ne3 15. Qe1 Qxe7 16. Qg3) 14... Bxg5 {[%emt 0:01:26]} 15. fxg5 {[%emt 0:00:03]} Be6 {[%emt 0:01:30]} 16. Ng3 {[%emt 0:00:42]} c5 {[%emt 0:01:48]} (16... h6 $17 17. Nh5 Kf8) 17. b3 {[%emt 1:29:20]} Ne3 {[%emt 0:01:46]} 18. Rf2 {[%emt 0:00:00]} g6 {[%emt 0:01:00]} 19. Nf1 {[%emt 0:00:00]} c4 {[%emt 0:02:59]} 20. bxc4 {[%emt 0:00:00]} Nxc4 {[%emt 1:23:05]} 21. Nd2 $15 {[%emt 0:00:00]} (21. c3 $1 $11 Rd8 22. Rc2) 21... Ne3 {[%emt 0:00:00]} 22. Nf1 {[%emt 0:00:00]} Ng4 {[%emt 0:00:00]} (22... Nxf1 $1 $15 23. Rxf1 O-O) 23. Rf3 {[%emt 0:00:00]} h6 {[%emt 0:00:00]} 24. h3 {[%emt 0:00:00]} hxg5 {[%emt 0:00:00]} 25. Qxg5 {[%emt 0:00:00]} Rh5 {[%emt 0:00:00]} 26. Qd2 {[%emt 0:00:00]} Qb6 {[%emt 0:00:00]} 27. Kg1 {[%emt 0:00:00]} Nh6 {[%emt 0:00:00]} 28. Ng3 {[%emt 0:00:00]} Ng8 {[%emt 0:00:00]} 29. Nxh5 {[%emt 0:00:00]} gxh5 {[%emt 0:00:00]} 30. Qg5 {[%emt 0:00:00]} f6 {[%emt 0:00:00]} 31. Qxh5+ {[%emt 0:00:00]} Bf7 {[%emt 0:00:00]} 32. Qh7 {[%emt 0:00:00]} Ra7 {[%emt 0:00:00]} 33. Qh8 {[%emt 0:00:00]} Ke7 {[%emt 0:00:00]} 34. Raf1 {[%emt 0:00:00]} Rc7 {[%emt 0:00:00]} 35. Qg7 {[%emt 0:00:00]} Ke8 {[%emt 0:00:00]} 36. Rxf6 {[%emt 0:00:00]} Nxf6 {[%emt 0:08:00]} 37. Rxf6 {[%emt 0:10:00]} Qa5 {[%emt 0:00:00]} 38. Rxa6 {[%emt 0:00:00]} Qe1+ {[%emt 0:00:00]} 39. Kh2 {[%emt 0:00:00]} Qf2 {[%emt 0:00:00]} 40. Qxe5+ {[%emt 0:00:00]} Kd8 {[%emt 0:00:00]} 41. Ra8+ {[%emt 0:00:00]} Kd7 {[%emt 0:00:00]} 42. Bb5+ {[%emt 0:00:00]} Rc6 {[%emt 0:00:00]} 43. Ra7+ {[%emt 0:00:00]} 1-0

[Event "40th BAN National Women Chess-ch 2021"]
[Site "Dhaka"]
[Date "2022.01.02"]
[Round "5.6"]
[White "Thakur Jania, Haque"]
[Black "Khan, Nazrana"]
[Result "1/2-1/2"]
[ECO "D30"]
[WhiteElo "1472"]
[BlackElo "1848"]
[Annotator "NA RC"]
[PlyCount "46"]
[EventDate "2021.12.29"]
[EventCountry "BAN"]
[SourceTitle "playchess.com"]
[Source "ChessBase"]
[SourceQuality "1"]
[TimeControl "40/5400+30:1800+30"]

1. c4 {[%emt 0:01:10]} Nf6 {[%emt 0:00:44]} 2. Nf3 {[%emt 0:00:10]} e6 {[%emt 0:00:15]} 3. d4 {[%emt 0:00:08]} d5 {[%emt 0:00:23]} 4. b3 {[%emt 0:00:08]} a6 {[%emt 0:04:31]} 5. Nc3 {[%emt 0:00:41]} Bb4 {[%emt 0:01:28]} 6. Bd2 {[%emt 0:00:46]} c5 {[%emt 0:03:24]} 7. e3 {[%emt 0:00:37]} cxd4 {[%emt 0:02:11]} 8. exd4 {[%emt 0:01:05]} Nc6 {[%emt 0:02:04]} 9. a3 {[%emt 0:02:29]} Be7 {[%emt 0:01:11]} 10. c5 {[%emt 0:02:09]} Ne4 {[%emt 0:04:00]} 11. Bd3 {[%emt 0:01:42]} f5 {[%emt 0:02:42]} 12. Ne2 {[%emt 0:05:15]} O-O {[%emt 0:01:43]} 13. Qc2 {[%emt 0:02:30]} Bf6 {[%emt 0:02:39]} 14. Bc3 {[%emt 0:01:26]} Bd7 {[%emt 0:05:22]} 15. b4 {[%emt 0:02:45]} Ne7 {[%emt 0:08:43]} 16. Ne5 {[%emt 0:01:57]} Qc7 {[%emt 0:04:17]} 17. f3 {[%emt 0:00:51]} Bxe5 {[%emt 0:05:35]} 18. dxe5 {[%emt 0:00:46]} Nxc3 {[%emt 0:00:45]} 19. Qxc3 {[%emt 0:00:19]} Bc6 {[%emt 0:05:36]} 20. Qd4 {[%emt 0:02:11]} Be8 {[%emt 0:04:34]} 21. f4 {[%emt 0:01:37]} Bh5 {[%emt 0:12:09]} 22. Ng3 {[%emt 0:02:50]} Bg6 {[%emt 0:01:07]} 23. O-O {[%emt 0:00:26]} Nc6 {[%emt 0:04:21]} 1/2-1/2

[Event "40th BAN National Women Chess-ch 2021"]
[Site "Dhaka"]
[Date "2022.01.03"]
[Round "6.2"]
[White "Jannatul, Ferdous"]
[Black "Talukder, Umme Taslima Protiva"]
[Result "1/2-1/2"]
[ECO "B84"]
[WhiteElo "1810"]
[BlackElo "1706"]
[Annotator "NA RC"]
[PlyCount "91"]
[EventDate "2021.12.29"]
[EventCountry "BAN"]
[SourceTitle "playchess.com"]
[Source "ChessBase"]
[SourceQuality "1"]
[TimeControl "40/5400+30:1800+30"]

{[%evp 8,84,39,15,22,28,34,15,21,10,18,-9,0,-41,-40,-44,-43,-37,-30,-32,0,-8,0,-7,11,0,105,122,127,130,137,129,136,149,308,105,209,137,141,122,129,135,146,116,112,119,245,234,241,259,248,207,210,222,284,32767,32767,239,242,264,223,236,245,251,239,243,250,244,235,230,251,220,225,226,218,244,329,260,281]} 1. e4 {[%emt 0:00:09]} c5 {[%emt 0:00:23]} 2. Nf3 {[%emt 0:00:18]} d6 {[%emt 0:00:52]} 3. d4 {[%emt 0:00:04]} cxd4 {[%emt 0:00:08]} 4. Nxd4 {[%emt 0:00:09]} Nf6 {[%emt 0:00:23]} 5. Nc3 {[%emt 0:00:04]} a6 {[%emt 0:00:07]} 6. Be3 {[%emt 0:00:27]} e6 {[%emt 1:31:37]} 7. Be2 {[%emt 0:01:04]} Be7 {[%emt 0:00:00]} 8. O-O {[%emt 0:00:47]} O-O {[%emt 0:00:00]} 9. Kh1 {[%emt 0:00:51]} b5 {[%emt 0:00:00]} 10. a3 {[%emt 0:00:37]} (10. Bf3 $11) 10... Bb7 {[%emt 0:00:00]} 11. Bd3 {[%emt 1:31:30]} Nbd7 {[%emt 0:00:00]} 12. f4 {[%emt 0:00:00]} Nc5 {[%emt 0:03:00]} 13. Qf3 $1 {[%emt 0:01:00]} Nxd3 {[%emt 0:00:00]} 14. cxd3 {[%emt 0:00:00]} Rc8 {[%emt 0:00:00]} 15. Rac1 {[%emt 0:00:00]} Qd7 {[%emt 0:00:00]} 16. g4 {[%emt 0:00:00]} d5 {[%emt 0:02:00]} (16... Qe8 $11 {remains equal.}) 17. e5 {[%emt 0:00:00]} Ne8 {[%emt 0:00:00]} 18. f5 {[%emt 0:00:00]} b4 {[%emt 0:00:00]} 19. axb4 {[%emt 0:00:00]} Bxb4 {[%emt 0:00:00]} 20. Qh3 {[%emt 0:00:00]} Be7 $2 {[%emt 0:00:00]} (20... Bc5 $16) 21. Kg1 {[%emt 0:00:00]} (21. Qh5 $18) 21... Kh8 {[%emt 0:00:00]} (21... Bc5 $16 {was worth a try.}) 22. g5 {[%emt 0:00:00]} (22. Rf3 $18 exf5 23. Rxf5 (23. gxf5 Qc7 $16)) 22... exf5 {[%emt 0:00:00]} 23. Qxf5 {[%emt 0:00:00]} ({Reject} 23. Rxf5 $6 g6 24. e6 fxe6 25. Rxf8+ Bxf8 $11) 23... Qxf5 {[%emt 0:00:00]} 24. Nxf5 {[%emt 0:00:00]} Bd8 {[%emt 0:00:00]} 25. Na4 {[%emt 0:00:00]} Rxc1 {[%emt 0:00:00]} 26. Rxc1 {[%emt 0:00:00]} Bc7 {[%emt 0:00:00]} (26... h6 $16) 27. Bc5 {[%emt 0:00:00]} Rg8 {[%emt 0:00:00]} 28. Ne7 {[%emt 0:00:00]} Bxe5 {[%emt 0:00:00]} 29. Nxg8 {[%emt 0:00:00]} Kxg8 {[%emt 0:00:00]} 30. Re1 {[%emt 0:00:00]} f6 {[%emt 0:07:00]} 31. d4 {[%emt 0:00:00]} Bc6 {[%emt 0:00:00]} 32. dxe5 {[%emt 0:03:23]} Bxa4 {[%emt 0:00:00]} 33. gxf6 {[%emt 0:01:45]} gxf6 {[%emt 0:00:00]} 34. e6 {[%emt 0:01:16]} Kg7 {[%emt 0:00:00]} 35. Kf2 {[%emt 0:01:05]} Kg6 {[%emt 0:00:00]} 36. Ke3 {[%emt 0:00:55]} Kf5 {[%emt 0:00:00]} 37. Kd4 {[%emt 0:00:38]} Nc7 {[%emt 0:00:00]} 38. e7 {[%emt 0:00:43]} Bc6 {[%emt 0:00:00]} 39. Bb4 {[%emt 0:01:17]} Ne6+ {[%emt 0:00:00]} 40. Kd3 {[%emt 0:00:00]} Bb5+ {[%emt 0:00:00]} 41. Kd2 {[%emt 0:09:16]} Be8 $18 {[%emt 0:00:00]} (41... d4 $142 42. h4 Ng7) 42. Rc1 {[%emt 0:03:05]} Kg6 {[%emt 0:00:00]} 43. Rc3 {[%emt 0:03:50]} Kf7 {[%emt 0:00:00]} 44. Rh3 {[%emt 0:01:08]} Ng5 {[%emt 0:00:00]} 45. Rd3 {[%emt 0:01:02]} Bc6 {[%emt 0:00:00]} 46. Kc3 {[%emt 0:01:31]} 1/2-1/2

[Event "40th BAN National Women Chess-ch 2021"]
[Site "Dhaka"]
[Date "2022.01.03"]
[Round "6.5"]
[White "Nusrat, Jahan Liza"]
[Black "Israt, Jahan Diba"]
[Result "0-1"]
[ECO "B72"]
[WhiteElo "1478"]
[BlackElo "1630"]
[Annotator "NA RC"]
[PlyCount "56"]
[EventDate "2021.12.29"]
[EventCountry "BAN"]
[SourceTitle "playchess.com"]
[Source "ChessBase"]
[SourceQuality "1"]
[TimeControl "40/5400+30:1800+30"]

1. e4 {[%emt 0:00:28]} c5 {[%emt 0:00:03]} 2. Nf3 {[%emt 0:00:06]} d6 {[%emt 0:00:06]} 3. d4 {[%emt 0:00:05]} cxd4 {[%emt 0:00:05]} 4. Nxd4 {[%emt 0:00:03]} Nf6 {[%emt 0:00:06]} 5. Nc3 {[%emt 0:00:04]} g6 {[%emt 0:00:06]} 6. Be3 {[%emt 0:00:25]} Bg7 {[%emt 0:00:10]} 7. Be2 {[%emt 0:01:05]} O-O {[%emt 0:00:09]} 8. Qd2 {[%emt 0:01:03]} Nc6 {[%emt 0:01:52]} 9. h3 {[%emt 0:00:19]} d5 {[%emt 0:02:18]} 10. exd5 {[%emt 0:00:34]} Nxd5 {[%emt 0:01:40]} 11. Nxc6 {[%emt 0:00:29]} bxc6 {[%emt 0:00:09]} 12. Rb1 {[%emt 0:00:16]} Rb8 {[%emt 0:01:30]} 13. Nxd5 {[%emt 0:00:22]} cxd5 {[%emt 0:00:30]} 14. b3 {[%emt 0:00:43]} Bf5 {[%emt 0:03:21]} 15. O-O {[%emt 0:00:24]} Rc8 {[%emt 0:03:20]} 16. Bd3 {[%emt 0:01:11]} Qd7 {[%emt 0:01:11]} 17. Bh6 {[%emt 0:11:27]} Bxh6 {[%emt 0:02:25]} 18. Qxh6 {[%emt 0:00:04]} Bxd3 {[%emt 0:00:55]} 19. cxd3 {[%emt 0:00:02]} Rc2 {[%emt 0:00:48]} 20. Ra1 {[%emt 0:01:24]} Rfc8 {[%emt 0:01:47]} 21. Qe3 {[%emt 0:06:01]} Qc7 {[%emt 0:09:19]} 22. Rfe1 {[%emt 0:06:10]} e6 {[%emt 0:01:50]} 23. h4 {[%emt 0:08:36]} Qc5 {[%emt 0:04:35]} 24. Qxc5 {[%emt 0:03:49]} Rc6 {[%emt 1:04:15]} 25. Qxc2 Rxc2 {[%emt 0:00:00]} 26. Kf1 {[%emt 0:00:57]} Rc3 {[%emt 0:00:00]} 27. Reb1 {[%emt 0:10:15]} Rxd3 {[%emt 0:01:30]} 28. Rd1 {[%emt 0:00:02]} Rd2 {[%emt 0:00:00]} 0-1

[Event "40th BAN National Women Chess-ch 2021"]
[Site "Dhaka"]
[Date "2022.01.03"]
[Round "6.6"]
[White "Tasnia Tarannum, Orpa"]
[Black "Musfica Zannat, Sawri"]
[Result "1-0"]
[ECO "B33"]
[WhiteElo "1618"]
[BlackElo "1361"]
[Annotator "NA RC"]
[PlyCount "87"]
[EventDate "2021.12.29"]
[EventCountry "BAN"]
[SourceTitle "playchess.com"]
[Source "ChessBase"]
[SourceQuality "1"]
[TimeControl "40/5400+30:1800+30"]

1. e4 {[%emt 0:00:03]} c5 {[%emt 0:00:04]} 2. Nf3 {[%emt 0:00:05]} Nc6 {[%emt 0:00:07]} 3. d4 {[%emt 0:00:04]} cxd4 {[%emt 0:00:04]} 4. Nxd4 {[%emt 0:00:04]} e5 {[%emt 0:00:46]} 5. Nb5 {[%emt 0:00:30]} d6 {[%emt 0:00:29]} 6. N1c3 {[%emt 0:00:30]} a6 {[%emt 0:00:42]} 7. Na3 {[%emt 0:00:11]} Nf6 {[%emt 0:01:02]} 8. Bg5 {[%emt 0:00:06]} Be7 {[%emt 0:02:28]} 9. Bxf6 {[%emt 0:00:35]} Bxf6 {[%emt 0:01:04]} 10. Nd5 {[%emt 0:00:02]} b5 {[%emt 0:13:32]} 11. c3 {[%emt 0:01:08]} O-O {[%emt 0:02:35]} 12. Nc2 {[%emt 0:00:08]} Bg5 {[%emt 0:08:18]} 13. h4 {[%emt 0:02:49]} Bh6 {[%emt 0:03:24]} 14. g4 {[%emt 0:02:06]} f6 {[%emt 0:08:08]} 15. Nce3 {[%emt 0:09:55]} Bxe3 {[%emt 0:05:31]} 16. Nxe3 {[%emt 0:00:58]} Ne7 {[%emt 0:05:10]} 17. Nf5 {[%emt 0:10:38]} Bxf5 {[%emt 0:02:06]} 18. gxf5 {[%emt 0:02:28]} d5 {[%emt 0:05:07]} 19. Qb3 {[%emt 0:01:07]} Kh8 {[%emt 0:01:41]} 20. O-O-O {[%emt 0:00:09]} d4 {[%emt 0:01:35]} 21. Kb1 {[%emt 0:03:10]} Nc6 {[%emt 0:04:17]} 22. f4 {[%emt 0:01:34]} Qd6 {[%emt 0:03:55]} 23. Qc2 {[%emt 0:09:41]} Rfc8 {[%emt 0:06:36]} 24. Qf2 {[%emt 0:07:44]} b4 {[%emt 0:04:43]} 25. cxd4 {[%emt 0:08:28]} Nxd4 {[%emt 0:00:50]} 26. fxe5 {[%emt 0:00:51]} fxe5 {[%emt 0:00:12]} 27. Bd3 {[%emt 0:03:32]} b3 {[%emt 0:03:34]} 28. a3 {[%emt 0:04:40]} Qc6 {[%emt 0:02:02]} 29. Rc1 {[%emt 0:01:42]} Qd6 {[%emt 0:01:26]} 30. Bc4 {[%emt 0:01:23]} Rc7 {[%emt 0:04:22]} 31. Bd5 {[%emt 0:02:57]} Rac8 {[%emt 0:00:24]} 32. Rxc7 {[%emt 0:06:43]} Qxc7 {[%emt 0:00:35]} 33. Qf1 {[%emt 0:02:44]} Qc2+ {[%emt 0:01:26]} 34. Ka1 {[%emt 0:00:12]} Nb5 {[%emt 0:01:50]} 35. f6 {[%emt 0:02:41]} g6 {[%emt 0:01:13]} 36. f7 {[%emt 0:00:22]} Kg7 {[%emt 0:00:38]} 37. h5 {[%emt 0:03:58]} Nc3 {[%emt 0:04:32]} 38. hxg6 {[%emt 0:01:19]} hxg6 {[%emt 0:03:02]} 39. Qh3 {[%emt 0:01:43]} Nd1 {[%emt 0:00:30]} 40. Qh6+ {[%emt 0:00:00]} Kf6 {[%emt 0:00:00]} 41. f8=Q+ {[%emt 0:01:48]} Rxf8 {[%emt 0:00:00]} 42. Qxf8+ {[%emt 0:00:08]} Kg5 {[%emt 0:00:00]} 43. Rg1+ {[%emt 0:00:06]} Kh5 {[%emt 0:00:00]} 44. Qh8# {[%emt 0:00:07]} 1-0